bitfinex/quotes_ETHUSD_20251213
["timestamp","ask_amount","ask_price","bid_price","bid_amount"]
[1765636155142,0.4797,3102.2,3101.3,0.58047529]
[1765636155143,0.77961641,3102.1,3101.3,0.58047529]
[1765636155336,0.29991641,3102.0,3101.3,0.58047529]
[1765636155642,0.29991641,3101.9,3101.3,0.67492245]
[1765636155851,0.29991641,3101.8,3101.3,0.67492245]
[1765636156142,0.29991641,3101.7,3101.3,0.67492245]
[1765636156451,0.4797,3102.1,3101.4,0.71240389]
[1765636156636,0.29993407,3102.0,3101.5,0.515]
[1765636156950,0.29993407,3101.9,3101.5,0.515]
[1765636157147,0.29993407,3101.8,3101.6,3.22414237]
[1765636157321,3.70301394,3102.4,3101.7,0.37391424]
[1765636157523,0.29994738,3102.3,3101.6,3.22414237]
[1765636157736,0.29994738,3102.2,3101.6,3.22414237]
[1765636157934,0.29994738,3102.1,3101.6,3.22414237]
[1765636158245,0.29994738,3102.0,3101.6,3.22414237]
[1765636158451,0.29994738,3101.9,3101.6,3.22414237]
[1765636158651,0.29994738,3101.8,3101.6,3.22414237]
[1765636158852,3.22322023,3102.5,3101.6,6.89343937]
[1765636159056,0.77968573,3102.4,3101.6,6.44828474]
[1765636159351,0.29998573,3102.3,3101.6,6.44828474]
[1765636159552,0.29998573,3102.2,3101.6,6.44828474]
[1765636159738,0.29998573,3102.1,3101.6,6.44828474]
[1765636160052,0.29998573,3102.0,3101.6,3.22414237]
[1765636160252,3.7031244,3102.3,3101.6,3.22414237]
[1765636160253,0.4537,3101.7,3101.6,3.80461766]
[1765636160468,0.75368573,3101.7,3101.6,0.58047529]
[1765636160965,0.29998573,3101.7,3101.6,0.58047529]
[1765636161142,0.75368573,3101.7,3101.6,0.58047529]
[1765636161526,0.75368573,3101.7,3101.6,3.80461766]
[1765636162060,0.29998573,3101.7,3101.6,3.80461766]
[1765636164229,0.29998573,3101.7,3101.6,4.55901302]
[1765636164459,0.4605,3102.7,3101.6,4.55901302]
[1765636164628,0.4605,3102.7,3101.7,0.67492245]
[1765636164629,0.30031355,3102.6,3101.7,0.67492245]
[1765636164938,0.30031355,3102.5,3101.9,0.09444716]
[1765636165136,0.30031355,3102.4,3102.0,0.514]
[1765636165331,0.30031355,3102.3,3102.0,0.514]
[1765636165659,0.6303,3103.0,3101.5,0.58047529]
[1765636165660,0.4914,3102.1,3101.5,0.58047529]
[1765636165853,0.30027154,3102.0,3101.7,0.514]
[1765636166159,0.30027154,3101.9,3101.7,0.514]
[1765636166359,0.97927154,3101.8,3101.7,0.514]
[1765636166747,1.42957154,3101.8,3101.7,0.514]
[1765636170235,7.8774405,3101.8,3100.1,3.22564891]
[1765636170442,0.4914,3101.2,3100.7,6.96515387]
[1765636170634,0.30027154,3101.1,3100.8,0.58047529]
[1765636170960,0.30027154,3101.0,3100.8,0.58047529]
[1765636171254,0.30027154,3100.9,3100.8,0.58047529]
[1765636171437,0.79167154,3100.9,3100.8,1.33523821]
[1765636171640,0.97927154,3100.9,3100.7,0.515]
[1765636171836,0.4503,3101.1,3100.7,0.515]
[1765636171837,0.4503,3101.1,3100.7,6.96514708]
[1765636172151,0.29997958,3101.0,3100.8,0.58047529]
[1765636172459,0.29997958,3100.9,3100.8,0.58047529]
[1765636172653,0.79137958,3100.9,3100.8,3.80544949]
[1765636172829,0.29997958,3100.9,3100.8,3.80544949]
[1765636173230,0.29997958,3100.9,3100.8,0.58047529]
[1765636173426,0.29997958,3100.9,3100.8,3.80544949]
[1765636174535,0.97897958,3100.9,3100.8,1.09547529]
[1765636175307,0.29997958,3100.9,3100.8,1.09547529]
[1765636175457,0.29997958,3100.9,3100.8,4.32044949]
[1765636175785,0.4503,3101.6,3100.8,7.54542369]
[1765636176083,0.29978868,3101.5,3100.8,7.54542369]
[1765636176282,0.29978868,3101.4,3100.8,7.54542369]
[1765636176481,0.29978868,3101.3,3100.8,7.54542369]
[1765636176691,0.29978868,3101.2,3100.8,8.30016606]
[1765636176980,0.29978868,3101.1,3100.8,8.30016606]
[1765636177184,0.4503,3101.6,3100.8,8.30016606]
[1765636177185,0.29978868,3101.0,3100.8,8.30016606]
[1765636177386,0.4503,3101.5,3100.8,8.30016606]
[1765636177587,0.29978234,3101.4,3100.8,7.54542369]
[1765636177783,0.29978234,3101.3,3100.8,7.54542369]
[1765636177983,0.29978234,3101.2,3100.8,7.54542369]
[1765636178286,0.4914,3100.9,3100.8,1.09547529]
[1765636178488,0.4914,3100.9,3100.2,3.22554093]
[1765636178489,28.365917,3100.8,3098.7,0.96857459]
[1765636178712,28.365917,3100.8,3098.4,3.2274445]
[1765636178713,9.950407,3099.5,3098.4,3.2274445]
[1765636178885,0.58047529,3099.6,3098.5,0.03227368]
[1765636178886,0.29978234,3099.4,3098.5,0.03227368]
[1765636179075,0.29978234,3099.3,3098.1,0.448]
[1765636179387,0.29978234,3099.2,3098.2,6.59466116]
[1765636179560,0.29978234,3099.1,3098.3,0.74525612]
[1765636179893,0.29893924,3099.3,3098.3,1.15515612]
[1765636180193,0.29894574,3099.3,3098.4,0.815404]
[1765636180357,0.4503,3099.5,3098.4,0.815404]
[1765636180557,0.29864502,3099.5,3098.5,1.09241073]
[1765636180976,0.1876,3099.6,3098.6,0.4099]
[1765636181259,0.1876,3099.6,3098.5,0.68251073]
[1765636181260,0.74894502,3099.5,3098.8,0.58047529]
[1765636181483,0.4503,3099.4,3098.8,0.58047529]
[1765636181673,0.1876,3099.6,3098.8,0.58047529]
[1765636181879,0.1876,3099.6,3098.9,1.54319546]
[1765636182363,0.4914,3099.0,3098.7,3.22715977]
[1765636182569,0.4506,3098.8,3098.7,3.22715977]
[1765636182770,0.74848589,3099.4,3098.7,6.45431954]
[1765636182990,0.4503,3099.4,3098.7,6.45431954]
[1765636183301,0.4503,3099.4,3098.7,7.15145149]
[1765636183490,0.1876,3099.6,3098.7,10.37861126]
[1765636183883,0.48558673,3099.6,3098.7,10.37861126]
[1765636184398,0.1876,3099.6,3098.7,10.37861126]
[1765636184761,0.1876,3099.6,3098.7,7.15145149]
[1765636185069,0.4503,3099.5,3098.7,10.37861126]
[1765636185274,0.1805,3099.8,3098.8,1.71102642]
[1765636185475,0.1876,3099.9,3099.4,0.4099]
[1765636185692,0.1876,3099.9,3099.5,0.517]
[1765636185892,0.6379,3099.9,3099.5,0.517]
[1765636186228,0.4914,3099.6,3099.5,0.517]
[1765636186675,0.4503,3099.8,3099.5,0.517]
[1765636186871,0.1876,3099.9,3098.9,0.405504]
[1765636186872,0.4914,3099.6,3098.9,0.405504]
[1765636187084,0.4914,3099.6,3099.2,0.58047529]
[1765636187468,0.4503,3099.8,3099.2,0.71577529]
[1765636188164,0.1876,3099.9,3099.2,0.71577529]
[1765636188566,0.6379,3100.4,3099.3,0.4099]
[1765636188769,0.29766014,3100.3,3099.4,0.517]
[1765636189006,0.74796014,3100.3,3099.4,0.68126753]
[1765636189210,0.74796014,3100.3,3099.5,6.45265364]
[1765636189368,0.4503,3100.2,3099.5,6.45265364]
[1765636190224,0.1876,3100.4,3099.6,0.4099]
[1765636190599,0.4503,3100.5,3099.6,0.99037529]
[1765636190799,0.4503,3100.5,3099.7,1.38956826]
[1765636191138,0.4503,3100.5,3099.9,3.22591051]
[1765636191631,0.4503,3100.5,3099.9,6.45182102]
[1765636191916,0.4914,3100.0,3099.9,3.22591051]
[1765636192117,0.4503,3100.5,3099.9,6.45182102]
[1765636192322,0.4914,3100.0,3099.8,0.517]
[1765636192526,0.4914,3100.0,3099.9,3.22591051]
[1765636192819,0.4503,3100.0,3099.9,3.22591051]
[1765636193006,0.9417,3100.0,3099.8,0.517]
[1765636193206,1.0815,3099.9,3099.8,0.517]
[1765636193523,1.0815,3099.9,3099.8,3.74301458]
[1765636193823,1.0815,3099.9,3099.8,0.517]
[1765636194004,1.0815,3099.9,3099.8,3.74301458]
[1765636194409,1.0815,3099.9,3099.8,0.517]
[1765636194815,1.0815,3099.9,3099.8,3.74301458]
[1765636195290,1.0815,3099.9,3099.8,0.517]
[1765636195491,1.0815,3099.9,3099.8,3.74301458]
[1765636195794,1.0815,3099.9,3099.8,0.517]
[1765636195795,1.37971894,3099.9,3099.8,0.517]
[1765636196194,1.57573836,3099.9,3099.8,0.517]
[1765636200532,8.02755938,3099.9,3098.7,3.22713077]
[1765636200687,0.4724,3099.6,3098.8,0.517]
[1765636200890,0.29821894,3099.5,3098.8,0.517]
[1765636201118,0.29821894,3099.4,3098.9,0.4099]
[1765636201336,0.29821894,3099.3,3099.0,0.517]
[1765636201656,0.4889,3099.8,3098.2,0.002]
[1765636201657,0.29821894,3099.2,3098.2,0.002]
[1765636201955,0.48931894,3099.1,3098.3,6.45513629]
[1765636202135,23.108794,3099.8,3098.4,0.61275001]
[1765636202444,0.29882346,3099.7,3099.0,0.4099]
[1765636202616,0.29882346,3099.6,3099.1,0.517]
[1765636202946,0.29882346,3099.5,3099.1,0.6523]
[1765636203147,0.1876,3099.9,3099.1,0.6523]
[1765636203367,0.29894961,3099.8,3099.4,0.4099]
[1765636203544,0.1876,3099.9,3099.5,3.22632682]
[1765636203545,0.29894961,3099.7,3099.5,3.22632682]
[1765636203721,0.6765,3099.9,3099.6,0.517]
[1765636203911,0.29902947,3099.8,3099.6,0.517]
[1765636204108,0.29902947,3099.7,3099.6,0.517]
[1765636204511,0.77142947,3099.7,3099.6,0.517]
[1765636204923,1.26032947,3099.7,3099.6,0.517]
[1765636206359,0.29902947,3099.7,3099.6,4.15312273]
[1765636206563,0.29902947,3099.7,3099.6,3.74322273]
[1765636207745,0.77142947,3099.7,3099.6,0.517]
[1765636207946,0.29902947,3099.7,3099.6,3.74322273]
[1765636208450,0.29902947,3099.7,3099.6,4.15312273]
[1765636208776,0.29902947,3099.7,3099.6,3.74322273]
[1765636209121,0.29902947,3099.7,3099.6,4.15312273]
[1765636209659,0.77142947,3099.7,3099.6,3.74322273]
[1765636209953,0.29902947,3099.7,3099.6,3.74322273]
[1765636210121,0.29902947,3099.7,3099.6,4.15312273]
[1765636211051,0.29902947,3099.7,3099.6,3.74322273]
[1765636211626,0.29902947,3099.7,3099.6,4.15312273]
[1765636213667,1.26032947,3099.7,3099.6,3.74322273]
[1765636214338,0.77142947,3099.7,3099.6,3.74322273]
[1765636214559,0.29902947,3099.7,3099.6,4.15312273]
[1765636216644,0.29902947,3099.7,3099.6,4.56302273]
[1765636216845,0.29902947,3099.7,3099.6,5.34195861]
[1765636218675,0.29902947,3099.7,3099.6,5.9224339]
[1765636221475,0.4889,3100.8,3099.7,0.58047529]
[1765636221671,0.30035435,3100.7,3099.7,0.99037529]
[1765636221872,0.30035435,3100.6,3099.9,6.45182102]
[1765636222074,0.30035435,3100.5,3100.0,0.516]
[1765636222384,0.30035435,3100.4,3100.0,0.516]
[1765636222580,0.30035435,3100.3,3100.0,0.516]
[1765636222750,0.30035435,3100.2,3100.0,0.516]
[1765636222952,0.30035435,3100.1,3100.0,1.3775209]
[1765636223474,0.30035435,3100.1,3100.0,2.1973209]
[1765636223972,0.30035435,3100.1,3100.0,5.42312735]
[1765636224876,0.001,3101.0,3100.1,0.98597929]
[1765636225079,0.001,3101.0,3100.9,0.4099]
[1765636225277,0.30110686,3101.0,3100.9,0.9259]
[1765636225872,0.30110686,3101.0,3100.9,1.3358]
[1765636226184,0.30110686,3101.0,3100.9,4.56067019]
[1765636226773,0.001,3101.0,3100.9,5.33923537]
[1765636226979,0.001,3101.0,3100.9,5.91971066]
[1765636227694,0.001,3101.0,3100.9,6.32521466]
[1765636228980,0.001,3101.0,3100.9,31.77391266]
[1765636229288,0.2993951,3102.9,3101.6,0.58047529]
[1765636229589,0.2993951,3102.8,3102.3,0.4099]
[1765636229792,0.2993951,3102.9,3102.4,0.516]
[1765636230085,0.2993951,3102.9,3102.5,6.44641418]
[1765636230259,0.1947,3103.2,3102.5,6.44641418]
[1765636230459,0.4940951,3103.2,3102.5,6.85631418]
[1765636230691,0.1947,3103.2,3102.5,6.85631418]
[1765636231210,0.1947,3103.2,3102.6,0.58047529]
[1765636231484,0.6688,3103.2,3102.6,0.58047529]
[1765636231890,0.4741,3103.1,3102.6,0.58047529]
[1765636232295,0.4741,3103.1,3102.7,3.22299932]
[1765636232459,0.4741,3103.1,3102.8,0.515]
[1765636232873,0.4935,3102.9,3102.8,0.515]
[1765636234178,0.4741,3103.1,3102.9,3.22279158]
[1765636234759,0.4935,3103.0,3102.9,3.22279158]
[1765636235276,0.1947,3103.2,3102.9,3.22279158]
[1765636235484,0.1947,3103.2,3102.9,3.63269158]
[1765636236194,0.4935,3103.0,3102.8,3.73785993]
[1765636236404,0.4013,3102.9,3102.8,3.73785993]
[1765636237258,0.4741,3103.1,3102.8,6.96075537]
[1765636237584,0.1947,3103.2,3102.8,6.96075537]
[1765636237766,0.4741,3103.4,3102.8,6.96075537]
[1765636238494,0.29726949,3103.6,3102.8,6.96075537]
[1765636238811,0.8260161,3103.6,3102.8,6.96075537]
[1765636238996,0.29720612,3103.5,3102.8,6.96075537]
[1765636239297,0.77130612,3103.5,3102.8,6.96075537]
[1765636239802,0.4741,3103.4,3102.8,6.96075537]
[1765636240797,0.4741,3103.4,3102.9,3.73770372]
[1765636241312,0.4935,3103.0,3102.8,3.22289104]
[1765636241466,0.29720612,3103.3,3102.9,0.515]
[1765636241667,0.77130612,3103.3,3102.9,0.515]
[1765636241999,0.29720612,3103.2,3102.9,0.515]
[1765636242165,0.4935,3103.0,3102.9,0.515]
[1765636244122,0.4935,3103.0,3102.9,3.73779158]
[1765636245434,0.4935,3103.0,3102.9,0.515]
[1765636245719,0.4935,3103.0,3102.9,3.73779158]
[1765636246408,0.79080207,3103.0,3102.9,3.73779158]
[1765636246594,0.4935,3103.0,3102.9,3.73779158]
[1765636246795,0.79080207,3103.0,3102.9,3.73779158]
[1765636246992,0.4935,3103.0,3102.9,3.73779158]
[1765636247197,0.29730207,3103.0,3102.9,3.73779158]
[1765636247690,0.29730207,3103.1,3102.9,5.2536693]
[1765636247910,0.29772777,3103.5,3103.1,0.4099]
[1765636248219,0.29772777,3103.4,3103.1,0.4099]
[1765636248509,0.29772777,3103.3,3103.1,0.4099]
[1765636248712,0.29772777,3103.2,3103.1,0.4099]
[1765636249213,0.29772777,3103.2,3102.9,7.65666088]
[1765636249403,0.29772777,3103.1,3102.9,7.65666088]
[1765636249600,0.4741,3103.6,3103.0,1.15366609]
[1765636249914,0.2980403,3103.5,3103.1,3.22258386]
[1765636250109,0.2980403,3103.4,3103.0,1.15366609]
[1765636250317,0.4935,3103.1,3102.9,0.58047529]
[1765636250511,5.20188605,3103.5,3103.1,0.514]
[1765636250512,8.42409256,3103.5,3103.1,0.514]
[1765636250700,0.77231566,3103.4,3103.1,0.514]
[1765636250907,0.4935,3103.2,3102.3,4.0193]
[1765636251210,4.72778605,3103.0,3102.3,10.32682976]
[1765636251518,0.29821566,3102.9,3102.4,1.09447529]
[1765636251722,0.29821566,3102.8,3102.4,1.09447529]
[1765636251891,0.29821566,3102.7,3102.4,3.73728091]
[1765636252096,0.4935,3102.5,3102.4,4.3177562]
[1765636252296,0.79171566,3102.5,3102.4,4.3177562]
[1765636253714,0.29821566,3102.5,3102.4,5.1684871]
[1765636254020,0.29821566,3102.5,3102.4,5.5783871]
[1765636256104,0.29821566,3102.5,3102.4,4.7585871]
[1765636256358,0.29821566,3102.5,3102.4,5.1684871]
[1765636256814,0.29821566,3102.5,3102.4,5.5783871]
[1765636257399,0.29821566,3102.5,3102.4,5.1684871]
[1765636257799,0.29821566,3102.5,3102.4,5.5783871]
[1765636258216,0.29821566,3102.5,3102.4,9.8638911]
[1765636259297,0.183,3104.1,3102.4,9.8638911]
[1765636259298,0.183,3104.1,3102.5,1.9723684]
[1765636259616,0.001,3104.2,3103.8,0.5452]
[1765636259802,0.001,3104.2,3103.8,0.8496766]
[1765636260004,0.001,3104.2,3103.8,4.07153367]
[1765636261588,0.4993,3103.9,3103.8,0.514]
[1765636261912,1.1655,3103.9,3103.8,3.73585707]
[1765636262420,1.1655,3103.9,3103.8,0.514]
[1765636264219,1.1655,3103.9,3103.8,3.73585707]
[1765636266722,1.1655,3103.9,3103.8,0.514]
[1765636266923,4.38725327,3103.9,3103.8,0.514]
[1765636267229,1.9263895,3103.9,3103.4,0.514]
[1765636267520,0.4792,3103.8,3103.6,3.22203529]
[1765636267723,0.4792,3103.8,3103.5,3.22212956]
[1765636268095,0.188,3103.9,3103.6,3.2220509]
[1765636268523,0.4983,3103.7,3103.5,3.22216851]
[1765636268824,0.6672,3103.9,3103.5,3.22216851]
[1765636269045,0.4983,3103.6,3103.4,0.514]
[1765636269231,0.4983,3103.5,3103.4,0.514]
[1765636269736,0.9775,3103.5,3103.4,0.514]
[1765636270129,0.9775,3103.5,3102.8,3.22289298]
[1765636270130,0.9775,3103.5,3102.9,1.09447529]
[1765636270326,0.4792,3103.4,3102.9,1.09447529]
[1765636270632,0.4983,3103.0,3102.2,3.22348082]
[1765636270818,0.4792,3103.4,3102.3,3.22336035]
[1765636271023,0.4792,3103.3,3102.3,3.42376035]
[1765636271261,0.29998794,3103.2,3102.4,0.78087529]
[1765636271559,0.29998794,3103.1,3102.4,0.78087529]
[1765636271763,0.29998794,3103.0,3102.9,3.22278892]
[1765636271947,0.79828794,3103.0,3102.9,3.73678892]
[1765636272155,0.29998794,3103.0,3102.9,3.73678892]
[1765636272955,0.79828794,3103.0,3102.9,0.514]
[1765636273132,0.79828794,3103.0,3102.9,3.73679158]
[1765636273732,0.29998794,3103.0,3102.9,3.73679158]
[1765636273939,0.29998794,3103.0,3102.9,4.43277024]
[1765636274128,0.29998794,3103.0,3102.9,4.63317024]
[1765636274323,0.29998794,3103.0,3102.9,4.83357024]
[1765636274523,0.29998794,3103.0,3102.9,5.41404553]
[1765636275151,0.29998794,3103.0,3102.9,5.21364553]
[1765636277546,0.29998794,3103.0,3102.9,5.01324553]
[1765636277966,0.29998794,3103.0,3102.9,5.21364553]
[1765636278748,0.29998794,3103.0,3102.9,4.31726687]
[1765636278939,0.29998794,3103.0,3102.9,4.51766687]
[1765636279143,0.29998794,3103.0,3102.9,3.93719158]
[1765636282280,0.30005179,3103.3,3102.9,7.36038316]
[1765636282460,0.476,3103.8,3103.2,0.2004]
[1765636282659,0.30008402,3103.7,3103.3,0.513]
[1765636282850,0.30008402,3103.6,3103.3,0.513]
[1765636283050,0.30008402,3103.5,3103.3,0.513]
[1765636283280,0.30008402,3103.4,3103.3,0.513]
[1765636283778,0.30008402,3103.4,3103.3,3.93577618]
[1765636284581,0.30008402,3103.4,3103.3,3.73537618]
[1765636284885,1.26695794,3103.4,3103.3,0.513]
[1765636291510,0.79095794,3103.4,3103.3,3.73537618]
[1765636292632,0.30015794,3103.4,3103.3,3.93577618]
[1765636293297,0.30015794,3103.4,3103.3,4.67165148]
[1765636295619,0.79725794,3103.4,3103.3,4.47125148]
[1765636295797,0.79725794,3103.4,3103.3,3.73537618]
[1765636296711,1.26445794,3103.4,3103.3,3.73537618]
[1765636297118,0.79725794,3103.4,3103.3,3.73537618]
[1765636297311,0.30015794,3103.4,3103.3,3.93577618]
[1765636299818,0.30015794,3103.4,3103.3,4.13617618]
[1765636300025,0.30015794,3103.4,3103.3,4.87204226]
[1765636300540,0.30015794,3103.4,3103.3,4.67164226]
[1765636300963,0.30015794,3103.4,3103.3,4.87204226]
[1765636301654,0.30015794,3103.4,3103.3,4.67164226]
[1765636301848,0.79725794,3103.4,3103.3,4.47124226]
[1765636302038,0.30015794,3103.4,3103.3,4.67164226]
[1765636303449,1.26445794,3103.4,3103.3,0.513]
[1765636304654,1.26445794,3103.4,3103.3,3.73537618]
[1765636305349,1.26445794,3103.4,3103.3,0.513]
[1765636310779,4.48682832,3103.4,3102.8,3.22287572]
[1765636310976,0.6206,3102.7,3102.2,0.33627808]
[1765636311174,0.30015794,3102.6,3102.3,0.512]
[1765636311381,0.6206,3102.7,3102.4,0.58047529]
[1765636311382,0.30015794,3102.5,3102.4,0.58047529]
[1765636311891,0.30015794,3102.5,3102.4,4.00418627]
[1765636312387,0.4672,3102.8,3102.4,7.22749725]
[1765636312683,0.30086568,3102.7,3102.5,0.77394972]
[1765636312892,0.30086568,3102.6,3102.5,0.77394972]
[1765636313185,0.79796568,3102.6,3102.5,0.77394972]
[1765636313751,0.79796568,3102.6,3102.5,4.5776321]
[1765636314264,0.30086568,3102.6,3102.5,4.5776321]
[1765636314575,0.30086568,3102.6,3102.5,4.7780321]
[1765636314779,0.6534,3102.9,3102.5,8.00123919]
[1765636314980,0.30074916,3102.8,3102.6,1.12245502]
[1765636315183,0.30074916,3102.7,3102.6,1.12245502]
[1765636315355,0.30074916,3102.7,3102.6,1.63445502]
[1765636315882,0.30074916,3102.7,3102.6,4.85755822]
[1765636316871,0.30074916,3102.7,3102.6,5.05795822]
[1765636317808,0.30074916,3102.7,3102.6,4.85755822]
[1765636318256,0.30074916,3102.7,3102.6,5.05795822]
[1765636320700,0.6566,3103.1,3102.6,8.28106142]
[1765636320995,0.30058328,3103.0,3102.7,1.20847438]
[1765636321197,0.30058328,3102.9,3102.7,1.20847438]
[1765636321393,0.30058328,3102.8,3102.7,1.20847438]
[1765636321607,0.30058328,3102.8,3102.7,4.4314737]
[1765636321817,0.30058328,3102.8,3102.7,4.6318737]
[1765636325586,0.30058328,3102.8,3102.7,4.4314737]
[1765636325895,1.24308328,3102.8,3102.7,4.4314737]
[1765636326095,0.76988328,3102.8,3102.7,4.4314737]
[1765636326887,1.24308328,3102.8,3102.7,3.22299932]
[1765636328714,1.24308328,3102.8,3102.7,0.512]
[1765636331423,1.24308328,3102.8,3102.7,3.73499932]
[1765636336427,1.24308328,3102.8,3102.6,3.2231032]
[1765636336428,1.24308328,3102.8,3101.8,3.88]
[1765636336666,0.4693,3102.1,3102.0,3.22562563]
[1765636336949,0.76988328,3102.1,3102.0,3.73762563]
[1765636337115,1.24308328,3102.1,3102.0,0.514]
[1765636339124,9.1955995,3102.1,3102.0,0.002]
[1765636339325,10.44695483,3102.1,3102.0,0.002]
[1765636340753,7.22333213,3102.1,3102.0,0.002]
[1765636340952,10.44695483,3102.1,3102.0,0.002]
[1765636343161,7.22333213,3102.1,3102.0,0.002]
[1765636343346,5.9719768,3102.1,3102.0,0.002]
[1765636344975,1.24308328,3102.1,3102.0,0.002]
[1765636346679,4.46670598,3102.1,3102.0,0.002]
[1765636346862,9.1955995,3102.1,3102.0,0.002]
[1765636351733,1.24308328,3102.1,3102.0,0.002]
[1765636351893,0.1834,3103.1,3102.0,0.9148]
[1765636352082,0.2995405,3103.0,3102.1,0.0651]
[1765636352286,0.2995405,3102.9,3102.2,0.2004]
[1765636352512,0.2995405,3102.8,3102.2,0.2004]
[1765636352717,0.2995405,3102.7,3102.2,0.2004]
[1765636353018,0.2995405,3102.6,3102.2,0.2004]
[1765636353312,0.2995405,3102.5,3102.2,0.2004]
[1765636353518,0.2995405,3102.9,3102.2,0.2004]
[1765636353713,0.2995405,3102.8,3102.4,0.2004]
[1765636353918,0.2995405,3102.7,3102.5,0.512]
[1765636354124,0.2995405,3102.6,3102.5,0.512]
[1765636354331,0.7707405,3102.6,3102.5,0.512]
[1765636354628,1.2635405,3102.6,3102.5,0.512]
[1765636356730,0.7707405,3102.6,3102.5,0.512]
[1765636357844,0.2995405,3102.6,3102.5,0.7124]
[1765636358042,0.2995405,3102.6,3102.5,3.93560709]
[1765636358634,0.2995405,3102.6,3102.5,4.13600709]
[1765636358801,0.2995405,3102.6,3102.5,4.87194829]
[1765636359246,0.2995405,3102.6,3102.5,4.67154829]
[1765636359405,0.2995405,3103.0,3102.5,8.09515538]
[1765636359607,0.6762,3103.1,3102.5,8.09515538]
[1765636359608,0.2995405,3102.9,3102.5,8.09515538]
[1765636359932,0.2995405,3102.8,3102.5,8.09515538]
[1765636360133,0.2995405,3102.7,3102.6,0.80951554]
[1765636360309,0.2995405,3102.7,3102.6,1.00991554]
[1765636360507,0.2995405,3102.7,3102.6,1.21031554]
[1765636360912,0.4928,3103.3,3102.6,7.65652194]
[1765636361122,0.29993797,3103.2,3102.6,7.65652194]
[1765636361304,0.29993797,3103.1,3102.7,1.1391729]
[1765636361510,0.29993797,3103.0,3102.7,1.1391729]
[1765636361838,3.22194181,3103.8,3103.2,0.2004]
[1765636362011,3.22194181,3103.8,3103.3,0.512]
[1765636362012,0.4928,3103.6,3103.3,0.512]
[1765636362211,0.30001578,3103.5,3103.3,0.512]
[1765636362519,0.77121578,3103.4,3103.3,0.512]
[1765636363129,0.30001578,3103.4,3103.3,0.7124]
[1765636363322,0.30001578,3103.4,3103.3,3.93477618]
[1765636363919,0.30001578,3103.4,3103.3,4.67054262]
[1765636364133,0.30001578,3103.4,3103.3,4.87094262]
[1765636364338,0.30001578,3103.8,3103.3,8.0933188]
[1765636364654,0.30001578,3103.7,3103.3,8.0933188]
[1765636364866,0.30001578,3103.6,3103.3,8.0933188]
[1765636365024,0.29992531,3103.8,3103.4,1.59020717]
[1765636365220,0.001,3103.9,3103.8,3.42225707]
[1765636365420,0.30076441,3103.9,3103.8,3.93425707]
[1765636366052,0.30076441,3103.9,3103.8,4.13465707]
[1765636366253,0.001,3103.9,3103.8,5.45079498]
[1765636366753,0.001,3103.9,3103.8,10.58713672]
[1765636367671,0.001,3103.9,3103.8,9.87473672]
[1765636367827,0.001,3103.9,3103.8,5.85629898]
[1765636369349,0.4722,3103.9,3103.8,0.512]
[1765636369644,0.4722,3103.9,3103.8,3.73385707]
[1765636369841,0.001,3103.9,3103.8,3.93425707]
[1765636370643,1.1553,3103.9,3103.1,3.22256758]
[1765636370849,0.4712,3103.7,3102.0,0.002]
[1765636371053,0.4712,3103.7,3102.7,3.22289653]
[1765636371378,3.22216851,3103.5,3102.8,0.512]
[1765636371523,3.22216851,3103.5,3102.8,3.73488267]
[1765636371724,0.4928,3103.4,3102.8,3.73488267]
[1765636372668,0.1913,3103.9,3102.8,4.43068047]
[1765636372669,0.4928,3103.6,3102.8,4.43068047]
[1765636372829,0.29854432,3103.8,3103.3,0.2004]
[1765636373029,0.79134432,3103.8,3103.4,0.512]
[1765636373457,0.4928,3103.7,3103.4,0.512]
[1765636373642,0.4712,3103.5,3103.4,0.512]
[1765636374036,0.4928,3103.7,3103.4,3.73424749]
[1765636374261,0.4928,3103.7,3103.4,0.512]
[1765636374957,0.1913,3103.9,3103.4,3.73419765]
[1765636375171,0.455,3103.8,3103.4,0.512]
[1765636375649,0.75371054,3103.8,3103.4,0.512]
[1765636376055,0.75371054,3103.8,3103.4,3.73422914]
[1765636376277,0.29871054,3103.8,3103.4,3.73422914]
[1765636376478,0.1913,3103.9,3103.7,0.2004]
[1765636376479,0.001,3103.9,3103.7,0.2004]
[1765636376794,0.001,3103.9,3103.8,0.7124]
[1765636377154,0.6505,3103.9,3103.8,0.512]
[1765636377491,0.001,3103.9,3103.8,3.73385707]
[1765636377654,0.001,3103.9,3103.8,3.93425707]
[1765636378164,0.001,3103.9,3103.8,3.73385707]
[1765636378771,0.001,3103.9,3103.8,4.62983975]
[1765636380385,0.001,3103.9,3103.8,4.83023975]
[1765636380600,0.001,3103.9,3103.8,4.62983975]
[1765636380795,0.001,3103.9,3103.8,5.41071504]
[1765636384508,0.001,3103.9,3103.8,4.49791504]
[1765636384707,0.001,3103.9,3103.8,5.21031504]
[1765636387538,0.001,3103.9,3103.8,5.00991504]
[1765636387745,0.4638,3103.9,3103.8,5.00991504]
[1765636388617,0.6505,3103.9,3103.8,5.00991504]
[1765636388829,1.1055,3103.9,3103.8,5.00991504]
[1765636389143,0.4638,3103.9,3103.8,5.00991504]
[1765636389718,0.001,3103.9,3103.8,5.21031504]
[1765636390342,0.30104098,3103.9,3103.8,5.00991504]
[1765636391147,0.30104098,3103.9,3103.8,5.21031504]
[1765636392411,0.76384098,3103.9,3103.8,5.00991504]
[1765636393077,0.76384098,3103.9,3103.8,3.73385707]
[1765636393229,1.40554098,3103.9,3103.8,3.73385707]
[1765636393430,0.76384098,3103.9,3103.8,3.73385707]
[1765636393630,0.30104098,3103.9,3103.8,3.73385707]
[1765636393831,0.30104098,3103.9,3103.8,3.93425707]
[1765636394381,1.21884098,3103.9,3103.8,3.73385707]
[1765636395611,1.21884098,3103.9,3102.8,0.6957978]
[1765636395612,1.40554098,3103.9,3102.8,0.8961978]
[1765636395817,0.4628,3103.7,3103.1,0.58047529]
[1765636396021,0.4628,3103.7,3103.2,6.44496004]
[1765636396216,0.4628,3103.7,3103.3,0.512]
[1765636396437,0.6427,3103.9,3103.6,0.2004]
[1765636396616,0.30023523,3103.8,3103.7,0.512]
[1765636397239,0.76303523,3103.8,3103.7,0.512]
[1765636397744,0.30023523,3103.8,3103.7,0.7124]
[1765636397915,0.30023523,3103.8,3103.7,0.9128]
[1765636398114,0.30023523,3103.8,3103.7,4.13476088]
[1765636398315,0.30023523,3103.8,3103.7,4.87044391]